bitfinex/quotes_ETHUSD_20250328
["timestamp","ask_amount","ask_price","bid_price","bid_amount"]
[1743165046480,5.28168,1893.4,1892.8,3.0]
[1743165046680,10.56335,1893.4,1892.8,3.0]
[1743165046973,5.28167,1893.4,1892.8,3.0]
[1743165047276,10.56337,1893.4,1892.8,3.0]
[1743165047482,5.28044,1893.8,1892.8,3.0]
[1743165047701,5.27907,1894.3,1892.9,0.55]
[1743165047862,0.7645,1893.6,1892.4,0.7873]
[1743165048190,5.28363,1892.7,1892.1,0.05]
[1743165048399,10.56822,1892.5,1892.1,0.05]
[1743165048552,5.28449,1892.4,1892.1,0.05]
[1743165048755,5.28485,1892.2,1892.1,0.05]
[1743165050497,5.28461,1892.3,1892.1,0.05]
[1743165050866,5.28367,1892.7,1892.1,0.05]
[1743165051059,5.28363,1892.7,1892.1,0.05]
[1743165051405,0.8298,1893.1,1892.1,0.05]
[1743165051556,5.2836,1892.7,1892.1,0.05]
[1743165051752,5.28332,1892.8,1892.1,3.05]
[1743165052069,5.28472,1892.3,1892.1,0.05]
[1743165052273,5.28485,1892.2,1892.1,0.05]
[1743165053698,5.28472,1892.3,1892.1,0.05]
[1743165054301,10.56944,1892.3,1892.1,0.05]
[1743165054505,5.28485,1892.2,1892.1,0.05]
[1743165054786,10.56945,1892.3,1892.1,0.05]
[1743165054968,10.56951,1892.3,1892.1,0.05]
[1743165055169,5.28472,1892.3,1892.1,0.05]
[1743165055791,5.28402,1892.5,1892.1,0.05]
[1743165056025,5.28375,1892.6,1892.1,0.05]
[1743165056158,0.8298,1893.1,1892.1,0.05]
[1743165056368,5.28419,1892.5,1892.1,0.05]
[1743165056587,5.28485,1892.2,1892.1,0.05]
[1743165056758,5.28472,1892.3,1892.1,0.05]
[1743165057333,5.28485,1892.2,1892.1,0.05]
[1743165058327,5.28485,1892.2,1892.1,1e-05]
[1743165060292,5.28422,1892.5,1892.1,1e-05]
[1743165060480,5.28443,1892.4,1892.1,1e-05]
[1743165060676,5.28485,1892.2,1892.1,1e-05]
[1743165060888,5.28447,1892.4,1892.1,1e-05]
[1743165061194,5.28269655,1892.9,1892.1,10.05701]
[1743165061581,15.84892655,1892.9,1892.1,10.05701]
[1743165061812,5.28317,1892.8,1892.1,10.05701]
[1743165061980,5.28351,1892.7,1892.2,0.55]
[1743165062175,5.28359,1892.7,1892.1,10.05701]
[1743165062412,5.28269655,1892.9,1892.2,3.55]
[1743165062584,5.28269655,1892.9,1892.5,3.55]
[1743165062909,5.28269655,1892.9,1892.5,5.2838]
[1743165063124,5.28269655,1892.9,1892.7,0.55]
[1743165063292,5.28269655,1892.9,1892.8,18.85517]
[1743165063494,5.28269655,1892.9,1892.8,13.572]
[1743165063811,5.27999,1894.0,1893.3,5.28174]
[1743165064132,5.2795,1894.2,1893.4,9.999]
[1743165064133,10.56116,1893.8,1893.4,9.999]
[1743165064427,10.56008,1894.0,1893.4,9.999]
[1743165064636,6.07667,1894.4,1893.6,0.55]
[1743165064637,0.7978,1894.4,1893.6,0.55]
[1743165064796,6.07658,1894.4,1893.4,3.0]
[1743165065123,5.28042,1893.8,1893.4,3.0]
[1743165065328,5.28207,1893.2,1893.0,9.972]
[1743165065542,5.28207,1893.2,1893.0,6.05137831]
[1743165065730,4.74902202,1893.6,1892.6,9.97]
[1743165065934,5.28409,1892.5,1892.1,1e-05]
[1743165066078,0.55,1893.4,1892.2,5.28478]
[1743165066079,5.2815,1893.4,1892.2,5.28478]
[1743165066284,5.28216,1893.2,1892.3,3.0]
[1743165066522,5.2829,1892.9,1892.1,8.2851]
[1743165066724,5.2829,1892.9,1892.1,1e-05]
[1743165066933,5.28312,1892.9,1892.1,5.28497]
[1743165067132,5.28245,1893.1,1892.2,3.0]
[1743165067328,5.28141,1893.5,1892.7,5.28318]
[1743165067498,8.04219264,1893.1,1892.9,0.55]
[1743165067831,8.04219264,1893.1,1893.0,4.3215]
[1743165068032,8.04219264,1893.1,1893.0,0.7715]
[1743165068327,13.32469264,1893.1,1892.8,9.933]
[1743165068561,8.04219264,1893.1,1892.9,5.83266]
[1743165068751,8.04219264,1893.1,1893.0,8.83262]
[1743165068904,8.04219264,1893.1,1892.5,5.28386]
[1743165069088,8.04219264,1893.1,1892.3,5.28457]
[1743165069289,8.04219264,1893.1,1892.2,9.981]
[1743165069504,8.84579264,1893.1,1892.2,9.981]
[1743165069704,8.04219264,1893.1,1892.2,9.981]
[1743165069945,5.28273,1893.0,1892.4,5.28417]
[1743165070117,8.04219264,1893.0,1892.4,5.83422]
[1743165070293,5.283,1892.9,1892.4,3.0]
[1743165070495,13.32481264,1893.0,1892.4,5.28412]
[1743165070727,13.32481264,1893.0,1892.5,0.55]
[1743165070922,5.2832,1892.8,1892.5,0.55]
[1743165071130,13.32486264,1893.0,1892.5,0.55]
[1743165071427,8.04219264,1893.0,1892.9,3.0]
[1743165071629,8.04219264,1893.0,1892.9,13.47]
[1743165071832,8.04219264,1893.0,1892.9,18.75289]
[1743165072158,6.72012684,1893.0,1892.9,18.75289]
[1743165072439,6.72012684,1893.0,1892.9,13.439]
[1743165072615,6.72012684,1893.0,1892.9,12.889]
[1743165072787,6.72012684,1893.0,1892.9,9.889]
[1743165073842,3.0,1893.8,1892.9,9.889]
[1743165073988,3.0,1893.7,1892.9,9.889]
[1743165074323,5.28262,1893.0,1892.8,27.933]
[1743165074510,5.28424,1892.5,1891.9,14.94839288]
[1743165074712,5.28375,1892.6,1892.4,9.816]
[1743165074930,5.28381,1892.6,1892.1,9.81201]
[1743165075232,5.28485,1892.2,1892.1,9.81201]
[1743165075818,5.28467,1892.3,1892.1,9.81201]
[1743165076509,5.2844,1892.4,1892.1,9.81201]
[1743165076726,0.8146,1893.1,1892.2,3.0]
[1743165076938,5.42145661,1892.4,1892.3,0.0528447]
[1743165077119,5.42145661,1892.4,1892.3,5.83457]
[1743165077639,5.42145661,1892.4,1892.3,33.76757]
[1743165077991,5.42145661,1892.4,1892.3,36.76757]
[1743165078195,4.09925796,1892.4,1892.3,36.76757]
[1743165078638,2.77705931,1892.4,1892.3,46.86048637]
[1743165079011,1.454287,1892.4,1892.3,46.86048637]
[1743165079193,1.454287,1892.4,1892.3,65.76880537]
[1743165079392,0.13151469,1892.4,1892.3,57.79115137]
[1743165079596,0.13151469,1892.4,1892.3,52.076239]
[1743165079801,0.13151469,1892.4,1892.3,50.734348]
[1743165080041,0.13151469,1892.4,1892.3,36.76757]
[1743165080342,0.13151469,1892.4,1892.3,53.657406]
[1743165080541,0.13151469,1892.4,1892.3,51.503142]
[1743165081204,0.13151469,1892.4,1892.3,33.25985]
[1743165081404,0.13151469,1892.4,1892.3,37.539]
[1743165081600,5.41580469,1892.4,1892.1,1e-05]
[1743165081944,5.95739516,1892.4,1892.1,1e-05]
[1743165082244,5.28485,1892.2,1892.1,1e-05]
[1743165082446,6.08795,1892.2,1892.1,1e-05]
[1743165083634,9.08795,1892.2,1892.1,1e-05]
[1743165083835,3.7541,1891.8,1890.2,5.29032]
[1743165084042,0.55,1891.6,1890.0,0.9227801]
[1743165084256,5.28909,1890.7,1890.0,0.9227801]
[1743165084539,5.29044,1890.2,1890.0,0.1701801]
[1743165084868,5.29044,1890.2,1890.1,1e-05]
[1743165085049,5.29072,1890.1,1890.0,1e-07]
[1743165085515,5.29044,1890.2,1890.0,1e-07]
[1743165085713,10.58113,1890.2,1890.0,1e-07]
[1743165086023,5.29072,1890.1,1890.0,1e-07]
[1743165086814,5.29016,1890.4,1890.0,9.5950001]
[1743165087039,10.58021,1890.4,1890.0,9.5950001]
[1743165087250,5.29052,1890.2,1890.0,8.8e-06]
[1743165087547,5.29072,1890.1,1890.0,8.8e-06]
[1743165087712,9.08492,1890.1,1888.7,27.94]
[1743165087915,5.2932,1889.3,1888.7,42.90051]
[1743165088138,5.2932,1889.3,1888.5,13.05989288]
[1743165088139,0.7942,1889.2,1888.5,6.95877288]
[1743165088342,5.29689,1887.9,1887.8,1.30686446]
[1743165088544,5.29829,1887.4,1887.3,0.25]
[1743165088903,0.8098,1887.9,1887.3,0.25]
[1743165089238,5.29829,1887.4,1887.3,0.25]
[1743165089447,5.29829,1887.4,1886.2,0.1127846]
[1743165089448,0.7983,1887.5,1886.2,0.1127846]
[1743165089617,3.7983,1887.5,1886.2,0.1127846]
[1743165089809,5.30025,1886.7,1886.2,0.1127846]
[1743165090156,8.29871,1887.3,1886.2,0.1127846]
[1743165090157,5.30138,1886.3,1886.2,0.1127846]
[1743165090308,6.09966,1886.4,1886.2,4.6e-06]
[1743165090501,0.7983,1886.4,1886.2,4.6e-06]
[1743165090702,3.0,1886.7,1886.2,4.6e-06]
[1743165090703,0.7903,1886.7,1886.2,4.6e-06]
[1743165090938,5.30071,1886.6,1886.2,4.6e-06]
[1743165091137,0.7903,1886.7,1886.2,4.6e-06]
[1743165091311,6.12453,1887.0,1886.2,4.6e-06]
[1743165091511,5.29998,1886.8,1886.2,4.6e-06]
[1743165091822,6.12453,1887.0,1886.2,4.6e-06]
[1743165091823,6.1244,1887.0,1886.2,5.3016346]
[1743165092024,6.1244,1887.0,1886.4,3.0]
[1743165092025,0.8249,1887.0,1886.4,3.0]
[1743165092338,0.7618,1887.4,1886.4,5.3011]
[1743165092546,0.7618,1887.4,1886.6,5.30029]
[1743165092860,6.06025,1887.4,1886.4,3.0]
[1743165093070,6.06025,1887.4,1886.2,0.83516806]
[1743165093071,0.55,1887.1,1886.2,4.6e-06]
[1743165093217,5.30115,1886.4,1886.2,4.6e-06]
[1743165093418,6.09398,1886.5,1886.2,4.6e-06]
[1743165093677,5.30138,1886.3,1886.2,4.6e-06]
[1743165093842,5.30134,1886.4,1885.6,5.50004022]
[1743165093843,5.30284,1885.8,1885.6,5.50004022]
[1743165094044,5.30307,1885.7,1885.6,5.50004022]
[1743165094244,5.30307,1885.7,1884.1,0.8719]
[1743165094245,5.30391,1885.4,1884.1,0.8719]
[1743165094421,4.856591,1885.7,1884.1,0.05]
[1743165094422,5.30672,1884.4,1884.1,0.05]
[1743165095034,0.7921,1884.8,1884.1,0.05]
[1743165095242,2.61096458,1887.0,1884.1,0.05]
[1743165095243,0.7921,1885.3,1884.5,5.30644]
[1743165095438,0.7921,1885.3,1884.7,5.30588]
[1743165095756,6.09641,1885.3,1884.3,0.0806424]
[1743165095957,5.30466,1885.2,1884.4,0.55]
[1743165096133,5.30493,1885.1,1884.3,5.3875524]
[1743165096333,0.7921,1885.3,1884.6,5.30611]
[1743165096524,0.7996,1885.8,1884.9,3.0]
[1743165096727,5.30409,1885.4,1884.7,0.530611]
[1743165096924,5.27073786,1884.4,1884.3,0.0806424]
[1743165097123,5.30672,1884.4,1884.3,0.0806424]
[1743165097359,0.7996,1885.2,1884.3,0.0806424]
[1743165097562,0.7996,1885.2,1884.3,5.3875324]
[1743165097727,5.37994855,1885.0,1884.4,1.30135324]
[1743165097935,5.37994855,1885.0,1884.8,5.30559]
[1743165098157,5.37994855,1885.0,1884.8,5.30547]
[1743165098354,5.37994855,1885.0,1884.9,8.30532]
[1743165098565,6.26954334,1885.2,1885.1,5.30475]
[1743165098870,4.60404702,1887.3,1886.5,5.30077]
[1743165098871,0.755,1887.1,1886.5,5.30077]
[1743165099026,0.755,1887.1,1886.3,10.809]
[1743165099230,0.755,1887.1,1886.1,31.008]
[1743165099231,0.755,1887.1,1886.2,10.802]
[1743165099469,0.755,1887.1,1885.6,3.99802202]
[1743165099470,5.30183,1886.2,1885.6,10.82]
[1743165099625,5.3013,1886.4,1885.7,8.30285]
[1743165099827,3.14088007,1886.0,1885.7,3.0]
[1743165100030,3.14088007,1886.0,1885.6,11.35875324]
[1743165100031,3.14088007,1886.0,1885.2,28.008]
[1743165100236,5.30419,1885.3,1885.2,28.008]
[1743165100486,3.14088007,1886.0,1885.2,33.31247]
[1743165100658,3.98516308,1886.0,1885.2,27.409069]
[1743165100858,5.30411,1885.4,1885.1,10.836]
[1743165101082,3.14088007,1886.0,1885.1,10.836]
[1743165101237,3.14088007,1886.0,1885.6,3.99802202]
[1743165101433,5.30252,1885.9,1885.4,3.0]
[1743165101739,8.44325007,1886.0,1885.5,5.3035]
[1743165101940,3.14088007,1886.0,1885.5,33.31857]
[1743165102140,3.14088007,1886.0,1885.9,5.3025]
[1743165102376,5.30156,1886.3,1885.8,3.0]
[1743165102580,0.8281,1886.8,1885.8,3.0]
[1743165102777,5.30066,1886.6,1886.0,5.30208]
[1743165102987,6.12819,1886.8,1886.2,5.30151]
[1743165103281,5.29903,1887.2,1886.6,5.30034]
[1743165103486,6.09872,1887.3,1886.7,16.07207]
[1743165103641,5.29832,1887.4,1886.7,16.07223]
[1743165103843,5.29887,1887.2,1886.7,16.07223]
[1743165104070,5.29886,1887.2,1886.7,16.07223]
[1743165104252,5.29843,1887.4,1886.9,5.29966]
[1743165104454,5.29874,1887.3,1886.7,16.07223]
[1743165104742,5.29825,1887.5,1887.0,5.2992]
[1743165105171,0.05,1887.9,1887.1,5.29913]
[1743165105356,0.05,1887.9,1887.4,5.29811]
[1743165105568,0.05,1887.9,1887.1,0.55]
[1743165105569,5.29768,1887.7,1887.5,10.698]
[1743165105746,5.29773,1887.6,1887.5,10.698]
[1743165105948,5.29768,1887.7,1887.5,10.698]
[1743165106154,5.34706,1887.9,1887.5,10.698]
[1743165106155,5.34708,1887.9,1887.5,10.698]
[1743165106353,0.05,1887.9,1887.5,15.99576]
[1743165106554,0.05,1887.9,1887.5,10.698]
[1743165106766,0.05,1887.9,1887.7,6.99802202]
[1743165107369,5.34694,1887.9,1887.7,10.643]
[1743165107793,0.05,1887.9,1887.7,10.643]
[1743165108087,0.05,1887.9,1887.7,25.23553202]
[1743165108288,0.05,1887.9,1887.7,14.64102202]
[1743165108647,0.05,1887.9,1887.7,19.93825202]
[1743165109083,0.05,1887.9,1887.7,19.93831202]
[1743165109587,0.05,1887.9,1887.8,5.35013841]
[1743165109892,0.05,1887.9,1887.8,6.65987]
[1743165110182,0.05,1887.9,1887.8,13.053429]
[1743165110360,0.05,1887.9,1887.8,12.657029]
[1743165110560,0.05,1887.9,1887.8,9.10987]
[1743165110953,0.05,1887.9,1887.7,14.64102202]
[1743165111148,0.05,1887.9,1887.8,5.29717]
[1743165111346,0.05,1887.9,1887.7,10.643]
[1743165111549,5.29717,1887.8,1887.7,10.643]
[1743165112048,5.29745,1887.7,1887.6,28.02]
[1743165112285,5.29843,1887.4,1887.2,10.55]
[1743165112488,5.29801,1887.5,1887.2,10.55]
[1743165112689,5.29773,1887.6,1887.2,10.55]
[1743165112893,0.05,1887.9,1887.3,3.0]
[1743165113088,0.05,1887.9,1887.5,3.99802202]
[1743165113394,5.29797,1887.6,1887.2,10.55]
[1743165113591,10.5959,1887.6,1887.2,10.55]
[1743165113794,5.29845,1887.4,1887.2,10.55]
[1743165113958,5.29816,1887.5,1887.2,10.55]
[1743165114148,5.29832,1887.4,1887.2,10.55]
[1743165114352,10.5962,1887.5,1887.2,10.55]
[1743165114590,0.05,1887.9,1887.2,10.55]
[1743165114749,5.29857,1887.3,1887.2,10.55]
[1743165115153,5.29902,1887.2,1886.9,32.00902202]
[1743165115454,5.29889,1887.2,1887.0,10.429]
[1743165115656,5.29939,1887.1,1886.9,38.426]
[1743165115880,5.881627,1887.9,1886.9,38.426]
[1743165115881,0.584687,1887.9,1887.0,5.29928]
[1743165116088,5.29829,1887.5,1887.0,5.29941]
[1743165116258,5.29813,1887.5,1887.0,5.29928]
[1743165116454,5.29825,1887.5,1887.0,5.29931]
[1743165116654,0.05,1887.9,1886.9,38.426]
[1743165116869,5.29847,1887.4,1886.9,43.72569]
[1743165117076,5.29804,1887.5,1887.0,14.59657202]
[1743165117299,0.05,1887.9,1887.1,5.29913]
[1743165117491,5.29858,1887.3,1887.0,3.99802202]
[1743165117698,5.29745,1887.7,1887.0,3.99802202]
[1743165117861,5.29816,1887.5,1887.0,5.36567111]
[1743165118063,5.29816,1887.5,1887.0,10.66490111]
[1743165118287,5.29852,1887.4,1887.0,0.06641111]
[1743165118597,5.34693,1887.9,1887.1,5.29901]
[1743165118901,10.59585,1887.6,1887.1,5.299]
[1743165119085,5.29802,1887.5,1887.1,5.299]
[1743165119490,5.29726,1887.8,1887.0,0.06641111]
[1743165119671,0.05,1887.9,1887.5,5.29791]
[1743165119852,0.05,1887.9,1887.6,15.58748]
[1743165120076,0.05,1887.9,1887.8,9.29519202]
[1743165120269,0.05,1887.9,1887.8,10.22471122]
[1743165120468,0.05,1887.9,1887.8,3.99802202]
[1743165120897,0.05,1887.9,1887.8,9.29519202]
[1743165121206,0.05,1887.9,1887.8,3.99802202]
[1743165121363,0.05,1887.9,1887.8,9.29519202]
[1743165121764,5.2188672,1888.6,1888.2,5.29595]
[1743165122000,5.2188672,1888.6,1888.3,15.51874]
[1743165122171,5.2188672,1888.6,1888.2,3.99802202]
[1743165122520,0.7713,1889.0,1888.1,10.215]
[1743165122521,10.5134772,1888.8,1888.1,10.215]
[1743165122686,10.5132772,1888.8,1888.3,5.29553]
[1743165123017,5.2188672,1888.8,1888.6,9.29292202]
[1743165123187,5.2188672,1888.8,1888.7,5.29464]
[1743165123576,5.2188672,1888.8,1888.7,15.47664]
[1743165123979,5.2188672,1888.8,1888.7,10.182]
[1743165124212,5.2188672,1888.8,1888.7,15.47664]
[1743165124624,5.2188672,1888.8,1888.7,15.47864]
[1743165125122,5.2188672,1888.8,1888.7,10.184]
[1743165125425,5.2188672,1888.8,1888.6,9.29270202]
[1743165125726,5.29362,1889.1,1888.7,10.174]
[1743165126023,0.529362,1889.0,1888.1,10.161]
[1743165126189,6.06099,1889.1,1888.1,10.161]
[1743165126393,5.29448,1888.8,1888.3,5.29559]
[1743165126693,5.29395,1889.0,1888.6,5.2949]
[1743165126896,5.29339,1889.2,1888.8,5.2942]
[1743165127080,5.2188672,1889.6,1889.1,5.29352]
[1743165127287,5.2188672,1889.6,1889.2,5.29324]
[1743165127484,5.2188672,1889.6,1889.3,10.115]
[1743165127814,5.29268,1889.4,1889.3,10.115]
[1743165128230,5.29324,1889.2,1889.1,28.0]
[1743165128408,5.29315,1889.3,1889.1,28.0]
[1743165128584,10.58633,1889.3,1889.1,28.0]
[1743165128784,5.29324,1889.2,1889.1,28.0]
[1743165129378,5.29271,1889.4,1889.1,28.0]
[1743165129578,5.29171,1889.8,1889.1,28.0]
[1743165129822,5.29284,1889.4,1889.1,28.0]
[1743165130045,5.29324,1889.2,1889.1,28.0]
[1743165130244,10.58527,1889.5,1889.1,28.0]
[1743165130430,5.29241,1889.5,1889.1,28.0]
[1743165130629,5.292,1889.7,1889.2,5.29301]
[1743165130809,5.29165,1889.8,1889.3,5.29284]
[1743165131138,5.34128,1889.9,1889.4,5.29242]
[1743165131308,5.29168,1889.8,1889.4,5.29251]
[1743165131511,5.29236,1889.6,1889.1,34.04643]
[1743165131704,5.29236,1889.6,1889.2,10.014]
[1743165131905,5.29187,1889.7,1889.2,15.30713]
[1743165132225,5.29187,1889.7,1889.2,10.014]
[1743165132226,5.2919,1889.7,1889.2,10.014]
[1743165132427,5.2938,1889.0,1888.3,0.8002]
[1743165132614,5.2941,1888.9,1888.7,9.994]
[1743165132814,5.2938,1889.0,1888.7,9.994]
[1743165132815,5.29405,1889.0,1888.7,9.994]
[1743165133015,5.29346,1889.2,1888.7,15.28854]
[1743165133338,5.2924,1889.5,1888.9,5.29383]
[1743165133339,5.29279,1889.4,1888.9,5.29383]
[1743165133526,5.29243,1889.5,1889.0,5.29354]
[1743165133836,5.29215,1889.6,1889.2,5.29314]
[1743165134038,5.29191,1889.7,1889.3,9.95]
[1743165134242,5.29191,1889.7,1889.3,20.53563]
[1743165134432,8.01261396,1889.5,1889.4,9.3436287]
[1743165134607,8.01261396,1889.5,1889.4,9.29070202]
[1743165135007,8.01261396,1889.5,1889.4,9.84070202]
[1743165135241,8.01261396,1889.5,1889.4,12.78206202]
[1743165135743,8.01261396,1889.5,1889.4,9.84070202]
[1743165136244,8.01261396,1889.5,1889.3,37.868]
[1743165136728,5.29352,1889.1,1888.7,3.99802202]
[1743165136905,14.63552836,1889.5,1889.1,5.29331]
[1743165137109,8.01261396,1889.5,1889.3,5.29285]
[1743165137310,13.30514396,1889.5,1889.1,3.99802202]
[1743165137553,13.30514396,1889.5,1889.1,9.29150202]
[1743165137761,8.01261396,1889.5,1889.2,5.29313]
[1743165137928,5.29184,1889.7,1889.2,5.2932]
[1743165138354,5.29253,1889.5,1889.1,9.29139202]
[1743165138523,5.29159,1889.8,1889.3,5.29276]
[1743165138856,0.05,1889.9,1889.2,0.55]
[1743165139056,0.05,1889.9,1889.3,1.3796]
[1743165139266,5.29156,1889.8,1889.4,5.29259]
[1743165139465,5.29212,1889.6,1889.5,9.802]
[1743165139662,5.29178,1889.8,1889.3,27.986]
[1743165139663,5.29268,1889.4,1889.3,27.986]
[1743165139827,5.29229,1889.6,1889.3,37.777]
[1743165140025,5.29268,1889.4,1889.3,27.986]
[1743165140824,5.2924,1889.5,1888.6,27.986]
[1743165141131,5.29352,1889.1,1889.0,9.748]
[1743165141517,5.29304,1889.3,1889.0,9.748]
[1743165141721,0.7839,1889.7,1889.0,15.04179]
[1743165141943,5.29259,1889.5,1889.1,10.58685]
[1743165142159,5.29197,1889.7,1889.3,5.29286]
[1743165142357,16.90541474,1889.8,1889.4,5.29256]
[1743165142622,11.61374474,1889.8,1889.2,6.1228]
[1743165142848,11.61374474,1889.8,1889.1,3.99802202]
[1743165142849,5.29184,1889.7,1889.3,9.691]
[1743165143166,11.61374474,1889.8,1889.4,0.55]
[1743165143459,11.61374474,1889.8,1889.6,5.29197]
[1743165143770,11.61374474,1889.8,1889.7,5.29184]
[1743165143960,11.61374474,1889.8,1889.5,9.29037202]
[1743165144148,11.61374474,1889.8,1889.7,5.29184]
[1743165144457,0.05,1889.9,1889.8,5.84156]
[1743165144652,0.05,1889.9,1889.8,34.122904]
[1743165144822,0.05,1889.9,1889.8,8.84156]
[1743165145054,0.05,1889.9,1889.8,12.277267]
[1743165145772,0.859,1891.0,1890.1,5.29048]
[1743165145961,5.28922,1890.7,1890.2,14.9222]
[1743165146161,5.28927,1890.7,1890.2,14.9222]
[1743165146507,0.859,1891.0,1890.2,14.92244]
[1743165146703,5.29016,1890.4,1890.3,9.601]
[1743165146877,5.28988,1890.4,1890.3,9.601]
[1743165147406,5.28988,1890.4,1890.3,9.583]
[1743165147587,3.859,1891.0,1890.3,9.583]
[1743165147588,0.859,1891.0,1890.3,9.583]
[1743165147900,5.28988,1890.4,1890.3,9.583]
[1743165148110,5.28935,1890.6,1890.3,9.583]
[1743165148403,5.28988,1890.4,1890.3,9.583]
[1743165148699,0.528935,1890.6,1889.8,8.29153]
[1743165148700,10.6969855,1890.3,1890.1,9.565]
[1743165149202,5.4068155,1890.3,1890.1,9.565]
[1743165149361,10.6971555,1890.3,1890.1,9.565]
[1743165149565,5.29044,1890.2,1890.1,9.565]
[1743165149791,10.6971555,1890.3,1890.1,9.565]
[1743165150103,5.4068155,1890.3,1890.1,9.565]
[1743165150299,5.4068155,1890.3,1890.2,5.29044]
[1743165150458,5.4068155,1890.3,1890.1,9.565]
[1743165150459,5.4068155,1890.3,1890.1,14.85551]
[1743165150659,5.4068155,1890.3,1890.1,9.565]
[1743165151359,5.4068155,1890.3,1890.1,14.85572]
[1743165151557,5.4068155,1890.3,1890.2,5.29044]
[1743165151798,5.4068155,1890.3,1890.2,5.84044]
[1743165152188,5.4068155,1890.3,1890.2,9.441]
[1743165152504,5.28934,1890.6,1890.2,9.441]
[1743165152505,0.859,1891.0,1890.3,0.55]
[1743165152713,5.28878,1890.8,1890.4,5.28987]
[1743165152919,5.2892,1890.7,1890.3,8.12238926]
[1743165153082,5.2892,1890.7,1873.4,0.27]
[1743165153083,5.28988,1890.4,1888.6,2.65845696]
[1743165153278,5.28988,1890.4,1890.1,9.425]
[1743165153613,5.28988,1890.4,1890.1,14.71567]
[1743165153835,5.28963,1890.5,1890.2,9.403]
[1743165154121,0.84601041,1890.7,1890.2,12.23550926]
[1743165154277,0.859,1891.0,1890.2,17.52592926]
[1743165154478,6.14721,1891.0,1890.4,5.28987]
[1743165154718,0.8213,1891.5,1890.5,5.28954]
[1743165154884,3.0,1891.2,1890.5,8.12186926]
[1743165155086,5.28803,1891.1,1890.5,8.12200926]
[1743165155433,5.28757,1891.3,1890.5,8.12208926]
[1743165155626,0.8213,1891.5,1890.5,2.83250926]
[1743165155827,6.10829,1891.5,1890.8,8.12114926]
[1743165155995,6.1954478,1891.5,1890.9,9.338]
[1743165156346,5.28729,1891.4,1890.9,9.338]
[1743165156479,5.28755,1891.3,1890.9,9.338]
[1743165156686,5.28711,1891.4,1890.9,9.338]
[1743165156880,6.1952778,1891.5,1890.9,9.338]
[1743165157082,2.35665158,1891.5,1890.9,9.338]
[1743165157325,0.9084578,1891.5,1890.9,9.338]
[1743165157487,5.28708,1891.4,1890.9,9.338]
[1743165157704,5.28755,1891.3,1890.8,8.12108926]
[1743165157898,6.1955278,1891.5,1891.0,14.58915]
[1743165158135,0.9084578,1891.5,1891.0,14.58915]
[1743165158296,0.0871578,1891.5,1891.1,5.28782]
[1743165158497,0.0871578,1891.5,1891.1,5.28775]
[1743165158698,0.0871578,1891.5,1891.2,5.28737]
[1743165159131,0.0871578,1891.5,1891.4,5.28708]
[1743165159542,0.0871578,1891.5,1891.4,8.11958926]
[1743165159699,0.0871578,1891.5,1891.4,8.66958926]
[1743165160019,0.0871578,1891.5,1891.4,8.11958926]
[1743165160752,0.0871578,1891.5,1891.4,9.209]
[1743165160906,0.0871578,1891.5,1891.4,17.87858926]
[1743165161240,7.8e-06,1891.5,1891.4,22.42886594]
[1743165161543,7.8e-06,1891.5,1891.4,35.71007926]
[1743165161842,7.8e-06,1891.5,1891.4,18.71188926]
[1743165162197,7.8e-06,1891.5,1891.4,18.16188926]
[1743165162403,7.8e-06,1891.5,1891.4,5.28708]
[1743165162598,7.8e-06,1891.5,1891.4,17.29058926]
[1743165163045,7.8e-06,1891.5,1891.4,28.85178926]
[1743165163218,7.8e-06,1891.5,1891.4,28.21848326]
[1743165163537,7.8e-06,1891.5,1891.4,23.69309926]
[1743165163948,7.8e-06,1891.5,1891.4,20.84058926]
[1743165164248,7.8e-06,1891.9,1891.8,9.63517]
[1743165164410,7.8e-06,1891.9,1891.8,17.92479426]
[1743165164615,7.8e-06,1891.9,1891.8,16.38067126]
[1743165164812,7.8e-06,1891.9,1891.8,17.93094794]
[1743165165001,7.8e-06,1891.9,1891.8,16.38067126]
[1743165165529,7.8e-06,1891.9,1891.8,25.49367126]
[1743165166303,0.8382,1893.0,1891.9,3.55]
[1743165166546,5.28205,1893.3,1892.8,5.28306]
[1743165166745,10.56459,1893.2,1892.9,9.089]
[1743165166912,5.28229,1893.2,1892.9,9.089]
[1743165167246,0.62644678,1893.3,1892.9,9.089]
[1743165167450,5.28246,1893.1,1892.9,9.089]
[1743165167748,10.56499,1893.1,1892.9,9.089]
[1743165167904,5.28178,1893.3,1892.5,3.62540926]
[1743165168107,5.28178,1893.3,1892.4,5.28428]
[1743165168108,5.28332,1892.8,1892.6,9.034]
[1743165168540,5.28345,1892.7,1892.6,9.034]
[1743165168705,5.28207,1893.2,1892.6,9.034]
[1743165168905,5.2829,1892.9,1892.6,9.034]
[1743165169131,5.2829,1892.9,1892.7,9.013]
[1743165169345,10.56545,1893.0,1892.7,9.013]
[1743165169511,5.28301,1892.9,1892.7,9.013]
[1743165169708,5.28269,1893.0,1892.7,9.013]
[1743165170155,5.28213,1893.2,1892.8,5.28307]
[1743165170317,5.28213,1893.2,1892.9,5.28285]
[1743165170743,5.28187,1893.3,1892.9,5.28285]
[1743165170947,5.28187,1893.3,1892.9,10.56565]
[1743165171148,0.9824178,1893.4,1892.8,8.11563926]
[1743165171464,5.28194,1893.3,1892.9,5.28289]
[1743165171815,5.28194,1893.3,1893.0,5.28256]